bitfinex/quotes_SOLUSD_20240623
["timestamp","ask_amount","ask_price","bid_price","bid_amount"]
[1719152883729,7.5091,133.17,133.16,100.0]
[1719152887982,18.7675,133.21,133.18,100.0]
[1719152888276,7.5085,133.19,133.18,100.0]
[1719152892640,18.8735848,133.23,133.2,100.0]
[1719152893066,7.5069,133.21,133.2,100.0]
[1719152894657,0.1089848,133.23,133.22,100.0]
[1719152895683,7.6147848,133.23,133.22,100.0]
[1719152896751,7.5063,133.22,133.2,100.0]
[1719152896954,7.5069,133.21,133.2,100.0]
[1719152898970,7.5066,133.22,133.2,100.0]
[1719152899180,7.5066,133.22,133.2,200.0]
[1719152900300,0.1089848,133.23,133.22,200.0]
[1719152900449,7.6147848,133.23,133.22,200.0]
[1719152904680,7.6147848,133.23,133.22,100.0]
[1719152906076,0.1089848,133.23,133.2,100.0]
[1719152906781,7.5069,133.21,133.2,100.0]
[1719152907357,7.5065,133.22,133.2,100.0]
[1719152907965,7.6148848,133.23,133.22,100.0]
[1719152908479,0.1089848,133.23,133.22,100.0]
[1719152911268,7.6147848,133.23,133.22,100.0]
[1719152911482,0.1089848,133.23,133.22,100.0]
[1719152911686,7.6147848,133.23,133.22,100.0]
[1719152911867,0.1089848,133.23,133.22,100.0]
[1719152912757,7.6147848,133.23,133.22,100.0]
[1719152926488,0.1089848,133.23,133.22,100.0]
[1719152926888,7.6147848,133.23,133.22,100.0]
[1719152928593,0.1089848,133.23,133.22,100.0]
[1719152929493,0.1089848,133.23,133.22,122.5232]
[1719152933604,0.1089848,133.23,133.22,100.0]
[1719152936674,26.3792848,133.23,133.22,100.0]
[1719152936878,7.6147848,133.23,133.22,100.0]
[1719152938283,0.1089848,133.23,133.22,100.0]
[1719152938691,7.6147848,133.23,133.22,100.0]
[1719152939216,0.1089848,133.23,133.22,100.0]
[1719152940612,7.6147848,133.23,133.22,100.0]
[1719152948407,0.1089848,133.23,133.22,100.0]
[1719152948607,7.6147848,133.23,133.22,100.0]
[1719152950908,0.1089848,133.23,133.22,100.0]
[1719152951710,7.6147848,133.23,133.22,100.0]
[1719152953944,0.1089848,133.23,133.22,100.0]
[1719152956308,0.1089848,133.23,133.22,100.34]
[1719152961546,0.1089848,133.23,133.22,100.17]
[1719152961840,0.1089848,133.23,133.22,100.0]
[1719152975156,0.1089848,133.23,133.22,100.34]
[1719152975862,0.1089848,133.23,133.22,107.8463]
[1719152976157,0.1089848,133.23,133.22,100.34]
[1719152976358,0.1089848,133.23,133.22,107.8463]
[1719152977745,0.1089848,133.23,133.22,100.34]
[1719152978652,0.1089848,133.23,133.22,107.8463]
[1719152978844,0.1089848,133.23,133.22,100.34]
[1719152980162,0.1089848,133.23,133.22,107.8463]
[1719152981162,0.1089848,133.23,133.22,100.34]
[1719152982060,0.1089848,133.23,133.22,100.0]
[1719152987233,7.6147848,133.23,133.22,100.0]
[1719152987635,0.1089848,133.23,133.22,100.0]
[1719152989539,7.6147848,133.23,133.22,100.0]
[1719152990434,0.1089848,133.23,133.22,100.0]
[1719152994471,0.1089848,133.23,133.22,100.17]
[1719152996951,0.1089848,133.23,133.22,100.34]
[1719153002153,0.1089848,133.23,133.22,100.17]
[1719153002769,0.1089848,133.23,133.22,100.0]
[1719153003755,7.6147848,133.23,133.22,100.0]
[1719153006465,20.1089848,133.23,133.22,100.0]
[1719153006667,0.1089848,133.23,133.22,100.0]
[1719153010873,0.1089848,133.23,133.22,100.34]
[1719153017159,0.1089848,133.23,133.22,100.0]
[1719153018492,0.1089848,133.23,133.22,100.17]
[1719153018682,0.1089848,133.23,133.22,107.6763]
[1719153018870,0.1089848,133.23,133.22,107.8463]
[1719153022590,0.1089848,133.23,133.22,129.4315]
[1719153027167,7.5005,133.33,133.32,200.0]
[1719153027406,34.3102,133.35,133.34,100.0]
[1719153027573,43.0606,133.35,133.34,100.0]
[1719153028706,43.0606,133.35,133.34,200.0]
[1719153033393,43.0606,133.35,133.34,100.0]
[1719153035406,43.0606,133.35,133.34,200.0]
[1719153035714,7.5013,133.31,133.3,100.0]
[1719153036718,7.5013,133.31,133.3,200.0]
[1719153037609,18.7502,133.34,133.32,100.0]
[1719153037809,20.0,133.33,133.32,100.0]
[1719153038522,27.5001,133.33,133.32,100.0]
[1719153039412,7.5013,133.31,133.3,100.0]
[1719153043009,20.0,133.33,133.32,100.0]
[1719153044010,27.5001,133.33,133.32,100.0]
[1719153047724,27.5001,133.33,133.3,100.0]
[1719153047725,7.5013,133.31,133.3,100.0]
[1719153049542,7.5013,133.31,133.28,100.0]
[1719153049543,7.5024,133.29,133.28,100.0]
[1719153050406,7.5035,133.27,133.26,100.0]
[1719153050939,27.5035,133.27,133.26,100.0]
[1719153057334,20.0,133.27,133.24,100.0]
[1719153057525,7.5046,133.25,133.24,100.0]
[1719153058413,7.5043,133.26,133.24,100.0]
[1719153061322,7.5046,133.25,133.24,100.0]
[1719153061526,27.5046,133.25,133.24,100.0]
[1719153071629,27.5046,133.25,133.22,100.0]
[1719153071630,7.5058,133.23,133.22,100.0]
[1719153072031,7.5058,133.23,133.22,200.0]
[1719153072353,27.5046,133.25,133.24,100.0]
[1719153074256,18.7634,133.24,133.21,100.0]
[1719153074444,7.5063,133.22,133.21,100.0]
[1719153074950,27.5063,133.22,133.21,100.0]
[1719153075340,20.0,133.22,133.21,200.0]
[1719153075548,27.5063,133.22,133.21,200.0]
[1719153077838,20.0,133.22,133.21,200.0]
[1719153078042,18.7628,133.25,133.23,100.0]
[1719153078341,20.0,133.24,133.21,200.0]
[1719153078536,7.5063,133.22,133.21,100.0]
[1719153081228,27.5063,133.22,133.21,100.0]
[1719153081928,7.5081,133.19,133.17,100.0]
[1719153082147,20.0,133.22,133.09,10.0]
[1719153082148,20.0,133.22,133.18,100.0]
[1719153082353,7.508,133.19,133.18,100.0]
[1719153082541,27.508,133.19,133.18,100.0]
[1719153089959,7.5097,133.16,133.15,100.0]
[1719153090166,27.5097,133.16,133.15,100.0]
[1719153094666,7.508,133.19,133.18,100.0]
[1719153094862,27.508,133.19,133.18,100.0]
[1719153096141,20.0,133.19,133.16,200.0]
[1719153096347,7.5091,133.17,133.16,200.0]
[1719153099369,7.5108,133.14,133.13,100.0]
[1719153100264,7.5108,133.14,133.1,100.0]
[1719153100265,15.5122,133.15,133.09,100.0]
[1719153100480,7.5131,133.1,133.09,100.0]
[1719153102563,7.5128,133.11,133.09,100.0]
[1719153103075,7.5131,133.1,133.09,100.0]
[1719153109254,18.7798,133.13,133.11,100.0]
[1719153109449,7.512,133.12,133.11,100.0]
[1719153109978,7.5117,133.13,133.11,100.0]
[1719153110570,34.2882,133.15,133.13,100.0]
[1719153110772,20.0,133.14,133.13,100.0]
[1719153111078,27.5108,133.14,133.13,100.0]
[1719153112772,7.512,133.12,133.11,100.0]
[1719153114767,22.9822,133.12,133.05,100.0]
[1719153114959,7.5154,133.06,133.05,100.0]
[1719153116980,27.5154,133.06,133.05,100.0]
[1719153117479,7.5165,133.04,133.03,100.0]
[1719153119385,7.5165,133.04,133.0,100.0]
[1719153119386,38.7926,133.04,133.0,100.0]
[1719153119683,7.5182,133.01,133.0,100.0]
[1719153121189,18.7926,133.04,133.02,100.0]
[1719153121376,20.0,133.03,133.02,100.0]
[1719153121884,27.5171,133.03,133.02,100.0]
[1719153123169,7.5182,133.01,133.0,100.0]
[1719153123563,27.5182,133.01,133.0,100.0]
[1719153125385,13.161975,133.01,133.0,100.0]
[1719153125572,13.161975,133.01,132.98,100.0]
[1719153125772,68.41764966,133.06,132.98,100.0]
[1719153125969,45.0,133.05,132.98,100.0]
[1719153127062,7.5193,132.99,132.98,100.0]
[1719153131686,18.7899,133.05,133.02,100.0]
[1719153131990,7.5182,133.01,133.0,100.0]
[1719153133168,7.5193,132.99,132.98,100.0]
[1719153133685,7.5176,133.02,133.01,100.0]
[1719153134973,26.3117,133.02,133.01,100.0]
[1719153135673,7.5187,133.0,132.99,100.0]
[1719153139191,7.5187,133.0,132.99,200.0]
[1719153143871,18.7941,133.02,133.01,100.0]
[1719153144070,38.7914,133.04,133.01,100.0]
[1719153144280,27.5165,133.04,133.03,100.0]
[1719153144486,7.5165,133.04,133.03,100.0]
[1719153144885,7.5176,133.02,133.01,100.0]
[1719153153599,7.5187,133.0,132.99,200.0]
[1719153154883,7.5187,133.0,132.99,100.0]
[1719153157902,7.5184,133.01,132.99,200.0]
[1719153159588,34.1468633,133.03,133.02,100.0]
[1719153159787,15.3538633,133.03,133.02,100.0]
[1719153160032,7.5171,133.03,133.02,100.0]
[1719153162088,7.5176,133.02,133.01,100.0]
[1719153163907,7.5182,133.01,133.0,100.0]
[1719153165422,18.7926,133.04,133.03,100.0]
[1719153165805,26.3091,133.04,133.03,100.0]
[1719153175723,7.5161,133.05,133.04,100.0]
[1719153176041,26.61957871,133.07,133.04,100.0]
[1719153176042,7.5148,133.07,133.06,100.0]
[1719153177750,18.787,133.08,133.04,200.0]
[1719153177751,7.5159,133.05,133.04,200.0]
[1719153183836,7.5171,133.03,133.02,200.0]
[1719153184038,7.5171,133.03,133.02,100.0]
[1719153190437,7.5182,133.01,133.0,100.0]
[1719153190624,7.5193,132.99,132.98,100.0]
[1719153191032,7.5193,132.99,132.98,200.0]
[1719153191940,7.5193,132.99,132.98,100.0]
[1719153192641,7.5204,132.97,132.96,200.0]
[1719153193147,7.5204,132.97,132.96,100.0]
[1719153202030,7.5216,132.95,132.94,100.0]
[1719153210156,18.8011,132.98,132.92,100.0]
[1719153210157,7.5227,132.93,132.92,100.0]
[1719153213441,18.8023,132.97,132.94,100.0]
[1719153213642,20.0,132.96,132.94,100.0]
[1719153214458,7.5218,132.95,132.94,100.0]
[1719153216362,26.3258,132.95,132.94,100.0]
[1719153217950,7.5218,132.95,132.94,100.0]
[1719153227467,7.5227,132.93,132.92,100.0]
[1719153227670,27.5227,132.93,132.92,100.0]
[1719153230266,7.82602066,132.99,132.92,100.0]
[1719153230458,7.82602066,132.99,132.95,200.0]
[1719153230459,7.521,132.96,132.95,200.0]
[1719153230849,7.521,132.96,132.95,100.0]
[1719153233090,7.521,132.96,132.95,200.0]
[1719153238273,18.7969,133.01,132.98,100.0]
[1719153238491,7.5193,132.99,132.98,100.0]
[1719153241574,7.5176,133.02,133.01,100.0]
[1719153244595,26.3051,133.06,133.05,100.0]
[1719153244770,46.3051,133.06,133.05,100.0]
[1719153245589,7.5165,133.04,133.03,100.0]
[1719153255911,7.5148,133.07,133.06,100.0]
[1719153257715,7.5159,133.05,133.04,200.0]
[1719153258403,7.5159,133.05,133.04,100.0]
[1719153260895,18.7885,133.06,133.02,100.0]
[1719153260896,7.5171,133.03,133.02,100.0]
[1719153263819,7.5182,133.01,133.0,200.0]
[1719153264002,7.5182,133.01,133.0,100.0]
[1719153264201,7.5171,133.03,133.02,100.0]
[1719153267931,7.5182,133.01,133.0,100.0]
[1719153271738,7.5191,133.0,132.98,100.0]
[1719153271925,7.5203,132.98,132.96,100.0]
[1719153272228,18.7968,133.01,132.97,100.0]
[1719153272534,7.5199,132.98,132.97,100.0]
[1719153274119,7.5196,132.99,132.97,100.0]
[1719153274521,7.5199,132.98,132.97,100.0]
[1719153277841,7.5206,132.97,132.95,100.0]
[1719153283151,25.4568,133.01,132.95,100.0]
[1719153283152,7.521,132.96,132.95,100.0]
[1719153283730,7.5216,132.95,132.93,100.0]
[1719153283921,18.7995,132.99,132.93,100.0]
[1719153283922,15.2665,132.98,132.93,100.0]
[1719153284123,7.5214,132.96,132.93,100.0]
[1719153284827,7.5216,132.95,132.93,100.0]
[1719153285840,7.5221,132.94,132.93,100.0]
[1719153292463,7.5216,132.95,132.94,200.0]
[1719153296469,7.5216,132.95,132.94,100.0]
[1719153298643,7.5216,132.95,132.94,200.0]
[1719153300361,26.3256,132.95,132.94,200.0]
[1719153300552,26.3256,132.95,132.94,100.0]
[1719153301467,7.5216,132.95,132.94,100.0]
[1719153301661,7.5216,132.95,132.94,200.0]
[1719153301841,18.7985,132.99,132.96,100.0]
[1719153302039,7.5204,132.97,132.96,200.0]
[1719153303164,7.5193,132.99,132.98,200.0]
[1719153309171,7.5176,133.02,133.01,100.0]
[1719153312970,15.3446159,133.06,133.01,100.0]
[1719153313173,15.3446159,133.06,132.98,22.8674]
[1719153313174,7.5159,133.05,133.04,100.0]
[1719153314249,7.5159,133.05,133.04,200.0]
[1719153317364,43.25559058,133.1,133.07,100.0]
[1719153317575,20.0,133.09,133.07,100.0]
[1719153318265,7.5142,133.08,133.07,100.0]
[1719153318568,27.5142,133.08,133.07,100.0]
[1719153319956,7.5142,133.08,133.07,100.0]
[1719153329466,7.5154,133.06,133.05,100.0]
[1719153333294,42.0271378,133.1,133.07,100.0]
[1719153333474,20.0,133.09,133.07,100.0]
[1719153334085,7.5142,133.08,133.07,100.0]
[1719153335195,7.5154,133.06,133.05,100.0]
[1719153336602,7.5165,133.04,133.03,100.0]
[1719153337185,7.5175,133.03,133.01,100.0]
[1719153338304,7.5176,133.02,133.01,100.0]
[1719153341783,18.7924,133.04,132.99,100.0]
[1719153341978,20.0,133.03,132.99,100.0]
[1719153342197,7.5187,133.0,132.99,100.0]
[1719153342390,18.7954,133.02,132.97,100.0]
[1719153342594,20.0,133.01,132.97,100.0]
[1719153343598,35.4278,133.01,132.97,100.0]
[1719153343910,18.7975,133.0,132.95,100.0]
[1719153344101,7.521,132.96,132.95,100.0]
[1719153347007,7.5207,132.97,132.95,100.0]
[1719153347746,7.521,132.96,132.95,100.0]
[1719153347893,26.62474787,133.0,132.93,100.0]
[1719153347894,7.5221,132.94,132.93,100.0]
[1719153354483,26.3275,132.94,132.93,100.0]
[1719153354710,7.5221,132.94,132.93,100.0]
[1719153361119,45.41193168,132.99,132.9,6.6498]
[1719153361120,18.8,132.98,132.97,100.0]
[1719153361422,38.8,132.98,132.97,100.0]
[1719153361599,7.521,132.96,132.95,200.0]
[1719153361915,46.3236,132.96,132.95,100.0]
[1719153362118,7.81230222,132.99,132.97,100.0]
[1719153362296,7.5199,132.98,132.97,200.0]
[1719153364314,7.521,132.96,132.95,200.0]
[1719153365425,26.3236,132.96,132.95,100.0]
[1719153369018,26.3236,132.96,132.95,200.0]
[1719153371822,7.521,132.96,132.95,200.0]
[1719153375445,7.521,132.96,132.95,100.0]
[1719153375622,7.5221,132.94,132.93,200.0]
[1719153377714,18.8023,132.97,132.95,100.0]
[1719153378118,7.5206,132.97,132.95,200.0]
[1719153379024,26.61700343,133.0,132.97,100.0]
[1719153379230,20.0,132.99,132.97,100.0]
[1719153380237,7.5199,132.98,132.97,100.0]
[1719153380413,7.5199,132.98,132.97,200.0]
[1719153383220,315.484,133.05,132.97,200.0]
[1719153383421,7.5194,132.99,132.98,200.0]
[1719153384024,7.5176,133.02,133.0,200.0]
[1719153384220,7.5171,133.03,133.02,100.0]
[1719153386512,7.5171,133.03,133.02,200.0]
[1719153387342,7.5154,133.06,133.05,100.0]
[1719153391535,7.5137,133.09,133.08,100.0]
[1719153392926,7.5137,133.09,133.08,200.0]
[1719153393128,7.5114,133.13,133.12,100.0]
[1719153395733,7.5125,133.11,133.1,100.0]
[1719153400551,27.5125,133.11,133.1,100.0]
[1719153401423,20.0,133.11,133.08,100.0]
[1719153401747,7.5148,133.07,133.06,100.0]
[1719153405057,7.5159,133.05,133.04,200.0]
[1719153405741,7.5159,133.05,133.04,100.0]
[1719153408456,7.5159,133.05,133.02,200.0]
[1719153409444,7.5159,133.05,133.04,100.0]
[1719153412261,7.5159,133.05,133.04,200.0]
[1719153414246,7.5156,133.06,133.04,200.0]
[1719153414446,7.5159,133.05,133.04,200.0]
[1719153414656,18.7867,133.08,133.06,100.0]
[1719153414854,20.0,133.07,133.06,100.0]
[1719153415056,27.5148,133.07,133.06,100.0]
[1719153415274,7.5159,133.05,133.04,200.0]
[1719153418866,7.5159,133.05,133.04,100.0]
[1719153419064,7.5171,133.03,133.02,200.0]
[1719153420041,7.5171,133.03,133.02,100.0]
[1719153422147,7.5171,133.03,133.02,200.0]
[1719153422349,7.5167,133.04,133.02,100.0]
[1719153422560,7.5167,133.04,133.03,100.0]
[1719153424062,7.5162,133.05,133.04,100.0]
[1719153425653,7.5165,133.04,133.03,100.0]
[1719153426450,7.5161,133.05,133.04,100.0]
[1719153426654,18.7845,133.09,133.06,200.0]
[1719153426871,20.0,133.08,133.06,200.0]
[1719153427065,7.5148,133.07,133.06,200.0]
[1719153428075,7.5159,133.05,133.04,200.0]
[1719153429958,7.5156,133.06,133.04,200.0]
[1719153430568,18.787,133.08,133.06,100.0]
[1719153430957,7.5148,133.07,133.06,100.0]
[1719153431153,7.5159,133.05,133.04,200.0]
[1719153433290,7.5159,133.05,133.04,100.0]
[1719153433291,26.3058,133.05,133.04,100.0]
[1719153433493,7.5171,133.03,133.02,200.0]
[1719153433657,7.5171,133.03,133.02,100.0]
[1719153438479,7.5182,133.01,133.0,200.0]
[1719153439064,26.3137,133.01,133.0,200.0]
[1719153439987,7.5182,133.01,133.0,200.0]
[1719153443095,7.5193,132.99,132.98,100.0]
[1719153444088,7.5193,132.99,132.98,200.0]
[1719153444392,7.519,133.0,132.98,200.0]
[1719153444897,7.5193,132.99,132.98,200.0]
[1719153445284,7.519,133.0,132.98,200.0]
[1719153448301,7.5193,132.99,132.98,200.0]
[1719153449498,7.5193,132.99,132.98,100.0]
[1719153449697,7.5204,132.97,132.96,200.0]
[1719153451500,7.52,132.98,132.96,200.0]
[1719153452399,7.52,132.98,132.96,100.0]
[1719153452979,7.5204,132.97,132.96,100.0]
[1719153457309,7.5211,132.96,132.94,100.0]
[1719153457611,7.5216,132.95,132.94,100.0]
[1719153459815,7.5213,132.96,132.94,100.0]
[1719153460887,7.5216,132.95,132.94,100.0]
[1719153461103,7.5212,132.96,132.95,100.0]
[1719153463104,7.5216,132.95,132.94,100.0]
[1719153463511,26.3256,132.95,132.94,100.0]
[1719153464417,7.5216,132.95,132.94,100.0]
[1719153470410,18.7986,132.99,132.96,200.0]
[1719153470619,7.5204,132.97,132.96,200.0]
[1719153470825,27.5204,132.97,132.96,200.0]
[1719153472327,27.5204,132.97,132.96,100.0]
[1719153474520,27.5204,132.97,132.96,200.0]
[1719153474521,7.5204,132.97,132.96,200.0]
[1719153476304,7.5204,132.97,132.96,100.0]
[1719153478223,27.5204,132.97,132.96,100.0]
[1719153482319,27.5204,132.97,132.96,200.0]
[1719153482917,7.5204,132.97,132.96,200.0]
[1719153483114,18.7969,133.01,132.99,100.0]
[1719153483316,27.5187,133.0,132.99,100.0]
[1719153485936,7.5187,133.0,132.99,100.0]
[1719153488718,27.5187,133.0,132.99,100.0]
[1719153491038,7.5199,132.98,132.97,100.0]
[1719153499950,26.3216,132.97,132.96,100.0]
[1719153500253,26.3216,132.97,132.95,100.0]
[1719153500254,7.521,132.96,132.95,100.0]
[1719153503352,27.521,132.96,132.95,100.0]
[1719153509048,7.521,132.96,132.95,100.0]
[1719153509935,7.5187,133.0,132.99,100.0]
[1719153513461,27.5187,133.0,132.99,100.0]
[1719153519446,7.5187,133.0,132.99,100.0]
[1719153521876,7.5176,133.02,133.01,100.0]
[1719153525771,7.5187,133.0,132.99,100.0]
[1719153562597,26.59446951,133.04,133.02,100.0]
[1719153562898,7.5171,133.03,133.02,100.0]
[1719153574105,26.3098,133.03,133.02,100.0]
[1719153574286,7.5182,133.01,133.0,100.0]
[1719153586791,46.59430609,133.03,132.98,100.0]
[1719153586792,7.5196,132.99,132.98,100.0]
[1719153590721,18.7952,133.02,133.01,100.0]
[1719153590916,38.7952,133.02,133.01,100.0]
[1719153591099,46.3128,133.02,133.01,100.0]
[1719153598930,7.5187,133.0,132.99,100.0]
[1719153599219,27.5187,133.0,132.99,100.0]
[1719153601313,7.5199,132.98,132.97,100.0]
[1719153601503,7.521,132.96,132.95,100.0]
[1719153603825,27.521,132.96,132.95,100.0]
[1719153607223,7.5221,132.94,132.93,100.0]
[1719153607424,27.5221,132.94,132.93,100.0]
[1719153621644,35.0571,132.94,132.93,100.0]
[1719153622339,7.5233,132.92,132.91,100.0]
[1719153622520,27.5233,132.92,132.91,100.0]
[1719153624144,20.0,132.92,132.91,200.0]
[1719153624338,26.64826036,132.95,132.94,100.0]
[1719153624644,46.3392,132.95,132.94,100.0]
[1719153625460,46.3258,132.95,132.94,100.0]
[1719153625639,53.8608,132.95,132.94,100.0]
[1719153626641,27.5216,132.95,132.94,100.0]
[1719153630142,27.5216,132.95,132.89,7.5282846]
[1719153630143,7.84561131,132.98,132.97,100.0]
[1719153630341,35.36551131,132.98,132.97,100.0]
[1719153630549,27.5199,132.98,132.97,100.0]
[1719153631342,35.0549,132.98,132.97,100.0]
[1719153632973,27.5199,132.98,132.97,100.0]
[1719153634253,35.0549,132.98,132.97,100.0]
[1719153635948,27.5199,132.98,132.97,100.0]
[1719153636153,35.0549,132.98,132.97,100.0]
[1719153636650,27.5199,132.98,132.97,100.0]
[1719153637028,35.0549,132.98,132.97,100.0]
[1719153637225,27.5199,132.98,132.97,100.0]
[1719153637430,7.521,132.96,132.95,100.0]
[1719153637663,27.521,132.96,132.95,100.0]
[1719153641326,7.521,132.96,132.95,100.0]
[1719153641530,15.36023003,132.99,132.98,100.0]
[1719153641727,7.5193,132.99,132.98,100.0]
[1719153645657,7.84015471,133.02,133.01,100.0]
[1719153645848,27.5176,133.02,133.01,100.0]
[1719153650836,26.3156,133.0,132.99,100.0]
[1719153651660,46.3156,133.0,132.99,100.0]
[1719153656765,7.5199,132.98,132.97,100.0]
[1719153656949,27.5199,132.98,132.97,100.0]
[1719153663355,7.521,132.96,132.95,100.0]
[1719153663551,7.5221,132.95,132.93,100.0]
[1719153663752,7.5221,132.94,132.93,100.0]
[1719153672207,26.3275,132.94,132.93,100.0]
[1719153676599,7.5233,132.92,132.91,100.0]
[1719153678385,20.0,132.92,132.89,100.8682846]
[1719153678572,7.5244,132.9,132.89,100.8682846]
[1719153679587,26.64160002,132.93,132.92,100.0]
[1719153679787,46.3296,132.93,132.92,100.0]
[1719153682615,7.5238,132.91,132.9,200.0]
[1719153695596,7.5238,132.91,132.9,100.0]
[1719153697625,27.5238,132.91,132.9,100.0]
[1719153703231,7.5238,132.91,132.9,200.0]
[1719153704942,7.5238,132.91,132.9,100.0]
[1719153715131,26.62997397,132.94,132.93,100.0]
[1719153715325,38.8056,132.94,132.93,100.0]
[1719153715726,7.5233,132.92,132.91,100.0]
[1719153729569,26.3256,132.95,132.94,100.0]
[1719153730753,7.5216,132.95,132.94,100.0]
[1719153733370,7.5227,132.93,132.92,100.0]
[1719153738559,18.8052,132.95,132.94,100.0]
[1719153738766,26.3268,132.95,132.94,100.0]
[1719153745185,7.5227,132.93,132.92,100.0]
[1719153766393,7.5238,132.91,132.9,100.0]
[1719153770692,7.5244,132.9,132.89,0.8682846]
[1719153779311,26.3355,132.9,132.89,0.8682846]
[1719153779515,46.3355,132.9,132.89,0.8682846]
[1719153781486,26.3355,132.9,132.89,0.8682846]
[1719153781707,46.3355,132.9,132.89,0.8682846]
[1719153788231,46.3355,132.9,132.89,8.46e-05]
[1719153788519,91.3355,132.9,132.89,8.46e-05]
[1719153788716,113.9401,132.9,132.89,8.46e-05]
[1719153789304,165.172,132.9,132.89,8.46e-05]
[1719153791322,165.172,132.9,132.8,100.0]
[1719153791323,7.5295,132.81,132.8,100.0]
[1719153793827,7.83362539,132.84,132.82,100.0]
[1719153794014,18.818,132.86,132.82,100.0]
[1719153794201,20.0,132.85,132.84,100.0]
[1719153794402,7.5284,132.83,132.82,100.0]
[1719153796808,7.528,132.84,132.83,100.0]
[1719153797014,7.528,132.84,132.83,200.0]
[1719153800008,7.5289,132.82,132.81,200.0]
[1719153803027,7.5272,132.85,132.84,100.0]
[1719153803524,18.815,132.88,132.87,100.0]
[1719153803725,7.5255,132.88,132.87,100.0]
[1719153806515,15.0605,132.88,132.87,100.0]
[1719153807007,7.5255,132.88,132.87,100.0]
[1719153807425,15.0605,132.88,132.87,100.0]
[1719153807929,7.5267,132.86,132.85,200.0]
[1719153810910,7.5267,132.86,132.83,6.66]
[1719153810911,18.8127,132.89,132.88,100.0]
[1719153811136,38.8127,132.89,132.88,100.0]
[1719153811438,46.3377,132.89,132.88,100.0]
[1719153811617,53.8727,132.89,132.88,100.0]
[1719153813824,33.8727,132.89,132.88,100.0]
[1719153814336,26.3377,132.89,132.88,100.0]
[1719153818837,7.525,132.89,132.88,100.0]
[1719153831748,7.5261,132.87,132.86,100.0]
[1719153831952,26.65072583,132.93,132.92,100.0]
[1719153832155,15.36542583,132.93,132.92,100.0]
[1719153832381,7.5227,132.93,132.92,100.0]
[1719153837978,26.3295,132.93,132.92,100.0]
[1719153838278,7.5233,132.92,132.91,100.0]
[1719153841966,18.8115,132.9,132.87,100.0]
[1719153842169,7.5255,132.88,132.87,100.0]
[1719153843487,7.5255,132.88,132.87,200.0]
[1719153843686,27.5255,132.88,132.87,200.0]
[1719153844786,7.5255,132.88,132.87,200.0]
[1719153849288,7.5252,132.89,132.88,100.0]